fUST/lending_fUST_20240427
["ID","MTS","AMOUNT","RATE_DAILY","PERIOD"]
[323665326,1714151467664,-500.0,0.00043287,2]
[323665327,1714151467673,-500.0,0.00043287,7]
[323665328,1714151467682,-500.0,0.00043287,7]
[323665329,1714151467692,-500.0,0.00043287,7]
[323665330,1714151467701,-1454.51,0.00043287,7]
[323665331,1714151467711,-164.14559722,0.00043561,7]
[323665332,1714151467720,-500.0,0.00043561,7]
[323665333,1714151467729,-843.21,0.00043561,7]
[323665334,1714151467738,-500.0,0.00043561,3]
[323665335,1714151467748,-500.0,0.00043561,7]
[323665336,1714151467757,-500.0,0.00043561,7]
[323665337,1714151467767,-1531.05,0.00043561,120]
[323665338,1714151467776,-553.15428864,0.00043561,7]
[323665339,1714151467785,-1205.42,0.00043561,7]
[323665340,1714151467795,-500.0,0.00043561,7]
[323665341,1714151467804,-500.0,0.00043561,7]
[323665342,1714151467814,-500.0,0.00043561,7]
[323665343,1714151467823,-500.0,0.00043561,7]
[323665344,1714151467832,-500.0,0.00043561,7]
[323665345,1714151467842,-500.0,0.00043561,7]
[323665346,1714151467850,-500.0,0.00043561,7]
[323665347,1714151467860,-500.0,0.00043561,7]
[323665348,1714151467869,-500.0,0.00043561,7]
[323665349,1714151467878,-500.0,0.00043561,7]
[323665350,1714151467887,-1843.11,0.00043561,7]
[323665351,1714151467896,-1315.36,0.00043561,7]
[323665352,1714151467905,-500.0,0.00043561,7]
[323665353,1714151467914,-500.0,0.00043561,7]
[323665354,1714151467923,-1968.72,0.00043561,7]
[323665355,1714151467933,-500.0,0.00043561,7]
[323665356,1714151467943,-500.0,0.00043561,7]
[323665357,1714151467952,-1326.46,0.00043561,7]
[323665358,1714151467961,-500.0,0.00043561,7]
[323665359,1714151467970,-500.0,0.00043561,7]
[323665360,1714151467980,-500.0,0.00043561,7]
[323665361,1714151467990,-500.0,0.00043561,7]
[323665362,1714151467999,-500.0,0.00043561,7]
[323665363,1714151468009,-500.0,0.00043561,7]
[323665364,1714151468021,-500.0,0.00043561,7]
[323665365,1714151468030,-500.0,0.00043561,7]
[323665366,1714151468039,-1037.26,0.00043561,7]
[323665367,1714151468049,-1749.02,0.00043561,7]
[323665368,1714151468059,-1398.14,0.00043561,7]
[323665369,1714151468068,-500.0,0.00043561,7]
[323665370,1714151468077,-500.0,0.00043561,7]
[323665371,1714151468087,-500.0,0.00043561,7]
[323665372,1714151468099,-547.54,0.00043561,7]
[323665373,1714151468108,-500.0,0.00043561,7]
[323665374,1714151468117,-2123.78,0.00043561,7]
[323665375,1714151468126,-500.0,0.00043561,7]
[323665376,1714151468137,-500.0,0.00043561,7]
[323665377,1714151468146,-500.0,0.00043561,7]
[323665378,1714151468155,-2561.54,0.00043561,7]
[323665379,1714151468166,-500.0,0.00043561,7]
[323665380,1714151468175,-500.0,0.00043561,7]
[323665381,1714151468184,-500.0,0.00043561,7]
[323665382,1714151468193,-1529.74,0.00043561,7]
[323665383,1714151468202,-1087.6,0.00043561,7]
[323665384,1714151468212,-1398.22,0.00043561,7]
[323665385,1714151468223,-200.0,0.00043561,30]
[323665386,1714151468232,-500.0,0.00043561,7]
[323665387,1714151468243,-1748.44,0.00043561,7]
[323665388,1714151468252,-500.0,0.00043561,7]
[323665389,1714151468261,-500.0,0.00043561,7]
[323665390,1714151468272,-500.0,0.00043561,7]
[323665391,1714151468281,-5209.22,0.00043561,7]
[323665392,1714151468291,-500.0,0.00043561,7]
[323665393,1714151468300,-500.0,0.00043561,7]
[323665394,1714151468310,-1379.93,0.00043561,7]
[323665395,1714151468319,-500.0,0.00043561,7]
[323665396,1714151468329,-500.0,0.00043561,7]
[323665397,1714151468338,-835.38,0.00043561,7]
[323665398,1714151468347,-500.0,0.00043561,7]
[323665399,1714151468357,-728.58,0.00043561,7]
[323665400,1714151468368,-704.86,0.00043561,7]
[323665401,1714151468377,-1073.4,0.00043561,7]
[323665402,1714151468386,-500.0,0.00043561,7]
[323665403,1714151468396,-500.0,0.00043561,7]
[323665404,1714151468405,-1875.92,0.00043561,7]
[323665405,1714151468415,-747.19,0.00043561,7]
[323665406,1714151468424,-500.0,0.00043561,7]
[323665407,1714151468433,-500.0,0.00043561,7]
[323665408,1714151468442,-500.0,0.00043561,7]
[323665409,1714151468451,-1963.81,0.00043561,7]
[323665410,1714151468461,-8810.57,0.00043561,7]
[323665411,1714151468471,-1211.86,0.00043561,7]
[323665412,1714151468479,-500.0,0.00043561,7]
[323665413,1714151468490,-500.0,0.00043561,7]
[323665414,1714151468500,-6049.81,0.00043561,7]
[323665415,1714151468510,-1108.5,0.00043561,7]
[323665416,1714151468519,-500.0,0.00043561,7]
[323665417,1714151468529,-500.0,0.00043561,7]
[323665418,1714151468538,-500.0,0.00043561,7]
[323665419,1714151468549,-660.06,0.00043561,7]
[323665420,1714151468558,-500.0,0.00043561,7]
[323665421,1714151468568,-4601.83,0.00043561,7]
[323665422,1714151468578,-500.0,0.00043561,7]
[323665423,1714151468588,-500.0,0.00043561,7]
[323665424,1714151468598,-1006.47,0.00043561,7]
[323665425,1714151468607,-2642.19,0.00043561,7]
[323665426,1714151468618,-1236.95,0.00043561,7]
[323665427,1714151468627,-900.0,0.00043561,7]
[323665428,1714151468637,-500.0,0.00043561,7]
[323665429,1714151468647,-500.0,0.00043561,7]
[323665430,1714151468656,-500.0,0.00043561,7]
[323665431,1714151468666,-1037.96,0.00043561,7]
[323665432,1714151468676,-414.4468786,0.00043561,7]
[323665433,1714151468685,-1068.89,0.00043561,7]
[323665434,1714151468694,-500.0,0.00043561,7]
[323665435,1714151468704,-538.99,0.00043561,7]
[323665436,1714151468714,-701.69,0.00043561,7]
[323665437,1714151468723,-3882.5,0.00043561,7]
[323665438,1714151468732,-1351.34,0.00043561,7]
[323665439,1714151468743,-500.0,0.00043561,7]
[323665440,1714151468752,-500.0,0.00043561,7]
[323665441,1714151468762,-500.0,0.00043561,7]
[323665442,1714151468773,-500.0,0.00043561,7]
[323665443,1714151468782,-1308.8,0.00043561,7]
[323665444,1714151468791,-4129.12,0.00043561,7]
[323665445,1714151468800,-500.0,0.00043561,7]
[323665446,1714151468810,-500.0,0.00043561,7]
[323665447,1714151468819,-1568.78,0.00043561,7]
[323665448,1714151468828,-624.57,0.00043561,7]
[323665449,1714151468837,-9906.46,0.00043561,7]
[323665450,1714151468847,-500.0,0.00043561,7]
[323665451,1714151468857,-707.43,0.00043561,7]
[323665452,1714151468866,-500.0,0.00043561,7]
[323665453,1714151468877,-500.0,0.00043561,7]
[323665454,1714151468887,-1463.03,0.00043561,7]
[323665455,1714151468896,-500.0,0.00043561,7]
[323665456,1714151468906,-8370.61,0.00043561,7]
[323665457,1714151468915,-652.39,0.00043561,7]
[323665458,1714151468925,-1240.5,0.00043561,7]
[323665459,1714151468934,-500.0,0.00043561,7]
[323665460,1714151468943,-500.0,0.00043561,7]
[323665461,1714151468953,-500.0,0.00043561,7]
[323665462,1714151468962,-500.0,0.00043561,7]
[323665463,1714151468972,-612.68,0.00043561,7]
[323665464,1714151468981,-735.34,0.00043561,7]
[323665465,1714151468992,-577.88,0.00043561,7]
[323665466,1714151469003,-12883.84,0.00043561,7]
[323665467,1714151469014,-10267.73,0.00043561,7]
[323665468,1714151469025,-1671.4,0.00043561,7]
[323665469,1714151469034,-500.0,0.00043561,7]
[323665470,1714151469044,-500.0,0.00043561,7]
[323665471,1714151469053,-500.0,0.00043561,7]
[323665472,1714151469065,-500.0,0.00043561,2]
[323665473,1714151469074,-500.0,0.00043561,7]
[323665474,1714151469083,-500.0,0.00043561,7]
[323665475,1714151469095,-500.0,0.00043561,7]
[323665476,1714151469105,-1454.51,0.00043561,7]
[323665477,1714151469114,-500.0,0.00043835,7]
[323665478,1714151469123,-843.21,0.00043835,7]
[323665479,1714151469132,-550.96381407,0.00043835,3]
[323665480,1714151469141,-500.0,0.00043835,7]
[323665481,1714151469150,-500.0,0.00043835,7]
[323665482,1714151469160,-1531.05,0.00043835,120]
[323665483,1714151469169,-1205.42,0.00043835,7]
[323665484,1714151469178,-500.0,0.00043835,7]
[323665485,1714151469188,-500.0,0.00043835,7]
[323665486,1714151469197,-503.17051338,0.00043835,7]
[323665487,1714151469206,-500.0,0.00043835,7]
[323665488,1714151469215,-500.0,0.00043835,7]
[323665489,1714151469224,-500.0,0.00043835,7]
[323665490,1714151469233,-500.0,0.00043835,7]
[323665491,1714151469243,-500.0,0.00043835,7]
[323665492,1714151469253,-500.0,0.00043835,7]
[323665493,1714151469263,-151.0,0.00043835,7]
[323665494,1714151469272,-500.0,0.00043835,7]
[323665495,1714151469282,-151.0,0.00043835,7]
[323665496,1714151469291,-1843.11,0.00043835,7]
[323665497,1714151469300,-1315.36,0.00043835,7]
[323665498,1714151469309,-500.0,0.00043835,7]
[323665499,1714151469318,-500.0,0.00043835,7]
[323665500,1714151469327,-1968.72,0.00043835,7]
[323665501,1714151469337,-500.0,0.00043835,7]
[323665502,1714151469346,-500.0,0.00043835,7]
[323665503,1714151469356,-151.0,0.00043835,7]
[323665504,1714151469365,-1326.46,0.00043835,7]
[323665505,1714151469374,-500.0,0.00043835,7]
[323665506,1714151469385,-500.0,0.00043835,7]
[323665507,1714151469395,-500.0,0.00043835,7]
[323665508,1714151469405,-500.0,0.00043835,7]
[323665509,1714151469416,-500.0,0.00043835,7]
[323665510,1714151469426,-563.83131325,0.00043835,7]
[323665511,1714151469436,-500.0,0.00043835,7]
[323665512,1714151469446,-500.0,0.00043835,7]
[323665513,1714151469456,-1037.26,0.00043835,7]
[323665514,1714151469466,-1749.02,0.00043835,7]
[323665515,1714151469475,-1398.14,0.00043835,7]
[323665516,1714151469485,-500.0,0.00043835,7]
[323665517,1714151469496,-500.0,0.00043835,7]
[323665518,1714151469506,-500.0,0.00043835,7]
[323665519,1714151469516,-547.54,0.00043835,7]
[323665520,1714151469526,-500.0,0.00043835,7]
[323665521,1714151469535,-2123.78,0.00043835,7]
[323665522,1714151469544,-500.0,0.00043835,7]
[323665523,1714151469554,-500.0,0.00043835,7]
[323665524,1714151469563,-500.0,0.00043835,7]
[323665525,1714151469572,-2561.54,0.00043835,7]
[323665526,1714151469582,-500.0,0.00043835,7]
[323665527,1714151469591,-500.0,0.00043835,7]
[323665528,1714151469600,-500.0,0.00043835,7]
[323665529,1714151469610,-1529.74,0.00043835,7]
[323665530,1714151469619,-1087.6,0.00043835,7]
[323665531,1714151469628,-200.0,0.00043835,30]
[323665532,1714151469638,-500.0,0.00043835,7]
[323665533,1714151469647,-1398.22,0.00043835,7]
[323665534,1714151469657,-1748.44,0.00043835,7]
[323665535,1714151469750,-500.0,0.00043835,7]
[323665536,1714151469760,-500.0,0.00043835,7]
[323665537,1714151469770,-500.0,0.00043835,7]
[323665538,1714151469779,-5209.22,0.00043835,7]
[323665539,1714151469789,-500.0,0.00043835,7]
[323665540,1714151469798,-500.0,0.00043835,7]
[323665541,1714151469807,-1379.93,0.00043835,7]
[323665542,1714151469817,-500.0,0.00043835,7]
[323665543,1714151469826,-500.0,0.00043835,7]
[323665544,1714151469837,-835.38,0.00043835,7]
[323665545,1714151469846,-500.0,0.00043835,7]
[323665546,1714151469855,-728.58,0.00043835,7]
[323665547,1714151469864,-704.86,0.00043835,7]
[323665548,1714151469873,-1073.4,0.00043835,7]
[323665549,1714151469882,-500.0,0.00043835,7]
[323665550,1714151469891,-500.0,0.00043835,7]
[323665551,1714151469900,-1875.92,0.00043835,7]
[323665552,1714151469909,-747.19,0.00043835,7]
[323665553,1714151469918,-500.0,0.00043835,7]
[323665554,1714151469927,-500.0,0.00043835,7]
[323665555,1714151469936,-500.0,0.00043835,7]
[323665556,1714151469945,-1963.81,0.00043835,7]
[323665557,1714151469955,-8810.57,0.00043835,7]
[323665558,1714151469964,-1211.86,0.00043835,7]
[323665559,1714151469973,-500.0,0.00043835,7]
[323665560,1714151469982,-500.0,0.00043835,7]
[323665561,1714151469993,-6049.81,0.00043835,7]
[323665562,1714151470002,-1108.5,0.00043835,7]
[323665563,1714151470014,-500.0,0.00043835,7]
[323665564,1714151470023,-500.0,0.00043835,7]
[323665565,1714151470033,-500.0,0.00043835,7]
[323665566,1714151470041,-660.06,0.00043835,7]
[323665567,1714151470050,-500.0,0.00043835,7]
[323665568,1714151470060,-4601.83,0.00043835,7]
[323665569,1714151470070,-500.0,0.00043835,7]
[323665570,1714151470079,-500.0,0.00043835,7]
[323665571,1714151470091,-1006.47,0.00043835,7]
[323665572,1714151470100,-2642.19,0.00043835,7]
[323665573,1714151470110,-1236.95,0.00043835,7]
[323665574,1714151470119,-900.0,0.00043835,7]
[323665575,1714151470128,-500.0,0.00043835,7]
[323665576,1714151470137,-500.0,0.00043835,7]
[323665577,1714151470146,-500.0,0.00043835,7]
[323665578,1714151470155,-1037.96,0.00043835,7]
[323665579,1714151470164,-1068.89,0.00043835,7]
[323665580,1714151470174,-500.0,0.00043835,7]
[323665581,1714151470184,-538.99,0.00043835,7]
[323665582,1714151470193,-701.69,0.00043835,7]
[323665583,1714151470202,-3882.5,0.00043835,7]
[323665584,1714151470211,-1351.34,0.00043835,7]
[323665585,1714151470220,-500.0,0.00043835,7]
[323665586,1714151470230,-503.76274955,0.00043835,7]
[323665587,1714151470239,-500.0,0.00043835,7]
[323665588,1714151470251,-500.0,0.00043835,7]
[323665589,1714151470260,-1308.8,0.00043835,7]
[323665590,1714151470269,-4129.12,0.00043835,7]
[323665591,1714151470279,-500.0,0.00043835,7]
[323665592,1714151470288,-500.0,0.00043835,7]
[323665593,1714151470297,-1568.78,0.00043835,7]
[323665594,1714151470306,-624.57,0.00043835,7]
[323665595,1714151470315,-9906.46,0.00043835,7]
[323665596,1714151470324,-500.0,0.00043835,7]
[323665597,1714151470334,-707.43,0.00043835,7]
[323665598,1714151470345,-508.2865854,0.00043835,7]
[323665599,1714151470354,-500.0,0.00043835,7]
[323665600,1714151470363,-1463.03,0.00043835,7]
[323665601,1714151470372,-500.0,0.00043835,7]
[323665602,1714151470382,-8370.61,0.00043835,7]
[323665603,1714151470391,-652.39,0.00043835,7]
[323665604,1714151470400,-1240.5,0.00043835,7]
[323665605,1714151470410,-500.0,0.00043835,7]
[323665606,1714151470419,-500.0,0.00043835,7]
[323665607,1714151470429,-500.0,0.00043835,7]
[323665608,1714151470439,-500.0,0.00043835,7]
[323665609,1714151470448,-612.68,0.00043835,7]
[323665610,1714151470458,-735.34,0.00043835,7]
[323665611,1714151470467,-577.88,0.00043835,7]
[323665612,1714151470477,-12883.84,0.00043835,7]
[323665613,1714151470487,-10267.73,0.00043835,7]
[323665614,1714151470499,-1671.4,0.00043835,7]
[323665615,1714151470509,-500.0,0.00043835,7]
[323665616,1714151470518,-233.52421287,0.00043835,7]
[323665617,1714151470528,-500.0,0.00043835,7]
[323665618,1714151470537,-500.0,0.00043835,2]
[323665619,1714151470547,-500.0,0.00043835,7]
[323665620,1714151470557,-500.0,0.00043835,7]
[323665621,1714151470566,-500.0,0.00043835,7]
[323665622,1714151470575,-1454.51,0.00043835,7]
[323665623,1714151470585,-1730.0,0.00043969,35]
[323665624,1714151470594,-1730.0,0.00043979,35]
[323665625,1714151470603,-1730.0,0.00043989,35]
[323665626,1714151470613,-415.74699228,0.00043995,4]
[323665627,1714151470622,-1422.50332304,0.00043995,4]
[323665628,1714151470631,-483.23040025,0.00043995,4]
[323665629,1714151470640,-199.67389647,0.00043995,4]
[323665630,1714151470650,-2592.22794505,0.00043995,4]
[323665631,1714151470659,-568.04004088,0.00043995,4]
[323665632,1714151470668,-906.51894019,0.00043995,4]
[323665633,1714151470678,-1029.07651526,0.00043995,4]
[323665634,1714151470687,-1202.39645166,0.00043995,4]
[323665635,1714151470697,-2612.43521073,0.00043997,4]
[323665636,1714151470706,-5017.39,0.00043997,7]
[323665637,1714151470715,-2727.96958732,0.00043998,4]
[323665638,1714151470725,-596.31188749,0.00043998,4]
[323665639,1714151470734,-359.86296313,0.00043998,4]
[323665640,1714151470744,-2093.84746973,0.00043998,4]
[323665641,1714151470753,-1044.77135523,0.00043998,4]
[323665642,1714151470762,-3264.92591322,0.00043998,4]
[323665643,1714151470771,-280.93828485,0.00043998,4]
[323665644,1714151470780,-281.22092233,0.00043998,4]
[323665645,1714151470789,-467.88367432,0.00043998,4]
[323665646,1714151470799,-564.48230421,0.00043998,4]
[323665647,1714151470808,-5017.39,0.00043998,7]
[323665648,1714151470817,-5017.39,0.00043998,7]
[323665649,1714151470825,-5017.39,0.00043998,7]
[323665650,1714151470834,-5017.39,0.00043998,7]
[323665651,1714151470843,-5017.39,0.00043998,7]
[323665652,1714151470852,-5017.56933767,0.00043998,7]
[323665653,1714151470862,-617.46767719,0.00043999,4]
[323665654,1714151470871,-315.54747406,0.00043999,4]
[323665655,1714151470880,-619260.54578477,0.00043999,4]
[323665656,1714151470890,-151.0,0.00043999,7]
[323665657,1714151470899,-287.50187,0.00043999,7]
[323665658,1714151470908,-151.0,0.00043999,7]
[323665659,1714151470918,-157.88977021,0.00044,120]
[323665660,1714151470927,-478.9295661,0.00044,30]
[323665661,1714151470936,-375909.0789,0.00044,2]
[323665662,1714151470945,-1000.0,0.00044,120]
[323665663,1714151470954,-177.0,0.00044,22]
[323665664,1714151470963,-151.0,0.00044,7]
[323665665,1714151470972,-260.922595,0.00044,7]
[323665666,1714151470981,-500.0,0.00044109,7]
[323665667,1714151470989,-843.21,0.00044109,7]
[323665668,1714151471001,-500.0,0.00044109,7]
[323665669,1714151471011,-500.0,0.00044109,7]
[323665670,1714151471023,-1531.05,0.00044109,120]
[323665671,1714151471032,-1205.42,0.00044109,7]
[323665672,1714151471042,-500.0,0.00044109,7]
[323665673,1714151471052,-500.0,0.00044109,7]
[323665674,1714151471062,-500.0,0.00044109,7]
[323665675,1714151471070,-500.0,0.00044109,7]
[323665676,1714151471079,-500.0,0.00044109,7]
[323665677,1714151471088,-500.0,0.00044109,7]
[323665678,1714151471098,-500.0,0.00044109,7]
[323665679,1714151471106,-500.0,0.00044109,7]
[323665680,1714151471116,-500.0,0.00044109,7]
[323665681,1714151471125,-1843.11,0.00044109,7]
[323665682,1714151471133,-1315.36,0.00044109,7]
[323665683,1714151471142,-500.0,0.00044109,7]
[323665684,1714151471151,-484.52966047,0.00044109,7]
[323665685,1714151471160,-1968.72,0.00044109,7]
[323665686,1714151471169,-505.11043776,0.00044109,7]
[323665687,1714151471178,-500.0,0.00044109,7]
[323665688,1714151471187,-1326.46,0.00044109,7]
[323665689,1714151471197,-500.0,0.00044109,7]
[323665690,1714151471206,-500.0,0.00044109,7]
[323665691,1714151471215,-500.0,0.00044109,7]
[323665692,1714151471224,-500.0,0.00044109,7]
[323665693,1714151471233,-500.0,0.00044109,7]
[323665694,1714151471243,-500.0,0.00044109,7]
[323665695,1714151471252,-500.0,0.00044109,7]
[323665696,1714151471261,-1037.26,0.00044109,7]
[323665697,1714151471270,-1749.02,0.00044109,7]
[323665698,1714151471279,-1398.14,0.00044109,7]
[323665699,1714151471288,-500.0,0.00044109,7]
[323665700,1714151471297,-500.0,0.00044109,7]
[323665701,1714151471321,-500.0,0.00044109,7]
[323665702,1714151471330,-547.54,0.00044109,7]
[323665703,1714151471340,-500.0,0.00044109,7]
[323665704,1714151471349,-2123.78,0.00044109,7]
[323665705,1714151471358,-500.0,0.00044109,7]
[323665706,1714151471367,-506.95070065,0.00044109,7]
[323665707,1714151471376,-500.0,0.00044109,7]
[323665708,1714151471385,-2561.54,0.00044109,7]
[323665709,1714151471395,-500.0,0.00044109,7]
[323665710,1714151471405,-500.0,0.00044109,7]
[323665711,1714151471414,-500.0,0.00044109,7]
[323665712,1714151471424,-1529.74,0.00044109,7]
[323665713,1714151471434,-1087.6,0.00044109,7]
[323665714,1714151471444,-500.0,0.00044109,7]
[323665715,1714151471453,-200.0,0.00044109,30]
[323665716,1714151471463,-1398.22,0.00044109,7]
[323665717,1714151471472,-1748.44,0.00044109,7]
[323665718,1714151471481,-500.0,0.00044109,7]
[323665719,1714151471492,-500.0,0.00044109,7]
[323665720,1714151471502,-500.0,0.00044109,7]
[323665721,1714151471511,-5209.22,0.00044109,7]
[323665722,1714151471521,-500.0,0.00044109,7]
[323665723,1714151471532,-500.0,0.00044109,7]
[323665724,1714151471541,-1379.93,0.00044109,7]
[323665725,1714151471552,-494.94135732,0.00044109,7]
[323665726,1714151471562,-500.0,0.00044109,7]
[323665727,1714151471571,-835.38,0.00044109,7]
[323665728,1714151471580,-500.0,0.00044109,7]
[323665729,1714151471590,-728.58,0.00044109,7]
[323665730,1714151471599,-704.86,0.00044109,7]
[323665731,1714151471608,-1073.4,0.00044109,7]
[323665732,1714151471618,-500.0,0.00044109,7]
[323665733,1714151471628,-500.0,0.00044109,7]
[323665734,1714151471637,-1875.92,0.00044109,7]
[323665735,1714151471647,-747.19,0.00044109,7]
[323665736,1714151471656,-370.08356786,0.00044109,7]
[323665737,1714151471665,-500.0,0.00044109,7]
[323665738,1714151471674,-385.22915536,0.00044109,7]
[323665739,1714151471684,-1963.81,0.00044109,7]
[323665740,1714151471693,-8810.57,0.00044109,7]
[323665741,1714151471702,-1211.86,0.00044109,7]
[323665742,1714151471711,-500.0,0.00044109,7]
[323665743,1714151471721,-500.0,0.00044109,7]
[323665744,1714151471730,-6049.81,0.00044109,7]
[323665745,1714151471739,-1108.5,0.00044109,7]
[323665746,1714151471750,-500.0,0.00044109,7]
[323665747,1714151471759,-500.0,0.00044109,7]
[323665748,1714151471769,-500.0,0.00044109,7]
[323665749,1714151471778,-660.06,0.00044109,7]
[323665750,1714151471788,-500.0,0.00044109,7]
[323665751,1714151471798,-4601.83,0.00044109,7]
[323665752,1714151471807,-500.0,0.00044109,7]
[323665753,1714151471817,-500.0,0.00044109,7]
[323665754,1714151471827,-2642.19,0.00044109,7]
[323665755,1714151471836,-1006.47,0.00044109,7]
[323665756,1714151471846,-1236.95,0.00044109,7]
[323665757,1714151471855,-900.0,0.00044109,7]
[323665758,1714151471864,-500.0,0.00044109,7]
[323665759,1714151471874,-500.0,0.00044109,7]
[323665760,1714151471883,-500.0,0.00044109,7]
[323665761,1714151471892,-1037.96,0.00044109,7]
[323665762,1714151471901,-1068.89,0.00044109,7]
[323665763,1714151471910,-491.92199554,0.00044109,7]
[323665764,1714151471921,-538.99,0.00044109,7]
[323665765,1714151471931,-701.69,0.00044109,7]
[323665766,1714151471941,-3882.5,0.00044109,7]
[323665767,1714151471951,-1351.34,0.00044109,7]
[323665768,1714151471960,-500.0,0.00044109,7]
[323665769,1714151471970,-500.0,0.00044109,7]
[323665770,1714151471979,-500.0,0.00044109,7]
[323665771,1714151471989,-1308.8,0.00044109,7]
[323665772,1714151472000,-4129.12,0.00044109,7]
[323665773,1714151472010,-500.0,0.00044109,7]
[323665774,1714151472021,-500.0,0.00044109,7]
[323665775,1714151472032,-1568.78,0.00044109,7]
[323665776,1714151472042,-624.57,0.00044109,7]
[323665777,1714151472051,-9906.46,0.00044109,7]
[323665778,1714151472063,-707.43,0.00044109,7]
[323665779,1714151472073,-500.0,0.00044109,7]
[323665780,1714151472082,-500.0,0.00044109,7]
[323665781,1714151472091,-1463.03,0.00044109,7]
[323665782,1714151472102,-500.0,0.00044109,7]
[323665783,1714151472112,-8370.61,0.00044109,7]
[323665784,1714151472122,-652.39,0.00044109,7]
[323665785,1714151472132,-1240.5,0.00044109,7]
[323665786,1714151472141,-500.0,0.00044109,7]
[323665787,1714151472151,-500.0,0.00044109,7]
[323665788,1714151472160,-545.09704064,0.00044109,7]
[323665789,1714151472169,-503.33958094,0.00044109,7]
[323665790,1714151472178,-612.68,0.00044109,7]
[323665791,1714151472187,-735.34,0.00044109,7]
[323665792,1714151472197,-577.88,0.00044109,7]
[323665793,1714151472207,-12883.84,0.00044109,7]
[323665794,1714151472216,-10267.73,0.00044109,7]
[323665795,1714151472226,-1671.4,0.00044109,7]
[323665796,1714151472236,-500.0,0.00044109,7]
[323665797,1714151472247,-500.0,0.00044109,7]
[323665798,1714151472257,-500.0,0.00044109,2]
[323665799,1714151472266,-500.0,0.00044109,7]
[323665800,1714151472365,-500.0,0.00044109,7]
[323665801,1714151472385,-500.0,0.00044109,7]
[323665802,1714151472394,-1454.51,0.00044109,7]
[323665803,1714151472404,-154.8530187,0.0004434,10]
[323665804,1714151472413,-500.0,0.00044383,7]
[323665805,1714151472422,-843.21,0.00044383,7]
[323665806,1714151472431,-169.30168542,0.00044383,7]
[323665807,1714151472440,-500.0,0.00044383,7]
[323665808,1714151472450,-1531.05,0.00044383,120]
[323665809,1714151472459,-1205.42,0.00044383,7]
[323665810,1714151472469,-500.0,0.00044383,7]
[323665811,1714151472478,-500.0,0.00044383,7]
[323665812,1714151472487,-500.0,0.00044383,7]
[323665813,1714151472498,-500.0,0.00044383,7]
[323665814,1714151472507,-500.0,0.00044383,7]
[323665815,1714151472515,-500.0,0.00044383,7]
[323665816,1714151472524,-500.0,0.00044383,7]
[323665817,1714151472534,-500.0,0.00044383,7]
[323665818,1714151472544,-500.0,0.00044383,7]
[323665819,1714151472554,-1843.11,0.00044383,7]
[323665820,1714151472563,-1315.36,0.00044383,7]
[323665821,1714151472572,-500.0,0.00044383,7]
[323665822,1714151472581,-1968.72,0.00044383,7]
[323665823,1714151472591,-500.0,0.00044383,7]
[323665824,1714151472601,-1326.46,0.00044383,7]
[323665825,1714151472610,-500.0,0.00044383,7]